{"text_format":"3","workbook":"xlsx","n_sheets":2,"sheets":["Qualification Criteria","Functional Criteria"],"not_rendered":{"defined_names":1},"read":"whole","date_system":"1900"}

{"sheet":"Qualification Criteria","index":0,"n_rows":34,"n_cols":14,"rows_kept":34,"merged":[[0,0,0,1],[0,2,0,4],[0,5,0,7],[0,8,0,10],[0,11,0,13],[13,0,13,13],[14,0,14,1],[14,2,14,4],[14,5,14,7],[14,8,14,10],[14,11,14,13],[17,2,17,4],[17,5,17,7],[17,8,17,10],[17,11,17,13],[31,0,32,1],[33,0,33,7]]}
["TENDER NO:  363209      ZR5 Compressor to be overhauled"]
["ITEM","Mandatory Evaluation Criteria","Compliant","Non Compliant","Not Applicable ","Compliant","Non Compliant","Not Applicable ","Compliant","Non Compliant","Not Applicable ","Compliant","Non Compliant","Not Applicable "]
[1,"Tenderer is a South African-owned company \n(Submit Certified ID Copies of the Shareholder and Directors) "]
[2,"The Tenderer must have the necessary infrastructure and capacity to meet PMP Products requirements.  "]
[3,"Valid Tax Clearance Certificate or an access pin to SARS  e Filing"]
[4,"Valid  B-BBEE Certificate (but  won’t result in disqualification, instead a Tenderer will be scored zero) "]
[5,"Central Supplier database proof of registration (submit supporting documentation).  "]
[6,"Certified copy of the Company Registration with CIPC  "]
[7,"Current Banking Details,  Cancelled Cheque or Original letter from the Bank issued on a bank letterhead with stamp.  "]
[8,"Certified copies of all share holder certificates                                                                                   ( Detailed breakdown of shareholding ) "]
[9,"A copy of the shareholder agreement                                                                                                          (if there is more than one shareholder) "]
[10,"Applicable Regulatory Body certificates    ( if applicable) "]
[11,"Others  "]
["Note: Failure to meet the above requirements will result in automatic disqualification "]
["PROGRESS TO FUNCTIONAL EVALUATION     ( YES  /  NO )   "]
[]
[]
["TENDER","363209 ZR5 Compressor to be overhauled"]
["Annexure","SBD Forms to be completed.","Compliant","Non Compliant","Not Applicable ","Compliant","Non Compliant","Not Applicable ","Compliant","Non Compliant","Not Applicable ","Compliant","Non Compliant","Not Applicable "]
[null,"Adhere to the 3 File system"]
["Part A","SBD 1  Invitation to Bid  (Completed)"]
["C","SBD 2 Tax Clearance certificate requirement"]
["D","SBD 4  Declaration of interest"]
["E","SBD 6.1  Preferential Points Claim form"]
["F","SBD 8   Declaration of bidders past Chain Supply Management"]
["G","SBD 9  Certificate of independent Bid Determination"]
[]
[]
[]
[]
[]
["Evaluator's"]
[]
["Name & Surname  :    ……………………………………..……………………………..……                                             Signature:       ………………………...……………………..………….                                                                         Date:       …………………..………………"]

{"sheet":"Functional Criteria","index":1,"n_rows":22,"n_cols":24,"rows_kept":22,"merged":[[0,0,0,3],[0,4,0,8],[0,9,0,13],[0,14,0,18],[0,19,0,23],[1,0,1,3],[1,4,1,8],[1,9,1,13],[1,14,1,18],[1,19,1,23],[2,4,2,8],[2,14,2,18],[2,19,2,23],[11,0,11,2],[12,0,12,3],[14,4,14,8],[14,9,14,13],[14,14,14,18],[14,19,14,23],[16,0,16,13],[21,0,21,1],[21,2,21,13]]}
["TENDER NO:       363233          Complete Refurbishment of Refractory work inside the Berg Furnace",{"$nulls":3},"Nature of Bussiness",{"$nulls":4},"Nature of Bussiness",{"$nulls":4},"Nature of Bussiness",{"$nulls":4},"Nature of Bussiness"]
[]
["Functional Evaluation criteria: "]
["Description","Measure","Score","Score"]
[{"$nulls":3},12,0,0,0,0,0,0,0,0,0,0,0,0,0,0,0,0,0,0,0,0]
["1.  Bidder must have expertise and experience in the trading and refurbishing and repairing of Refractory and Furnaces\n","Testimonial Letter ",20,"5 years = 5                               3-4 years = 4                           2-3 Years = 3.5                        1-2 Years = 2.5                     Less than 1 Year = 1    ",0,0,0,0,0,0,0,0,0,0,0,0,0,0,0,0,0,0,0,0]
[{"$nulls":4},{"$f":"+($C$6/5)*E$6","v":0},{"$f":"+($C$6/5)*F$6","v":0},{"$f":"+($C$6/5)*G$6","v":0},0,0,0,0,0,0,0,0,0,0,0,0,0,0,0,0,0]
[{"$nulls":4},{"$f":"+(#REF!/5)*#REF!","v":{"$error":"#REF!"}},{"$f":"+(#REF!/5)*#REF!","v":{"$error":"#REF!"}},{"$f":"+(#REF!/5)*#REF!","v":{"$error":"#REF!"}},{"$f":"+(#REF!/5)*#REF!","v":{"$error":"#REF!"}},{"$f":"+(#REF!/5)*#REF!","v":{"$error":"#REF!"}},{"$f":"+(#REF!/5)*#REF!","v":{"$error":"#REF!"}},{"$f":"+(#REF!/5)*#REF!","v":{"$error":"#REF!"}},{"$f":"+(#REF!/5)*#REF!","v":{"$error":"#REF!"}},{"$f":"+(#REF!/5)*#REF!","v":{"$error":"#REF!"}},{"$f":"+(#REF!/5)*#REF!","v":{"$error":"#REF!"}},{"$f":"+(#REF!/5)*#REF!","v":{"$error":"#REF!"}},{"$f":"+(#REF!/5)*#REF!","v":{"$error":"#REF!"}},{"$f":"+(#REF!/5)*#REF!","v":{"$error":"#REF!"}},{"$f":"+(#REF!/5)*#REF!","v":{"$error":"#REF!"}},{"$f":"+(#REF!/5)*#REF!","v":{"$error":"#REF!"}},{"$f":"+(#REF!/5)*#REF!","v":{"$error":"#REF!"}},{"$f":"+(#REF!/5)*#REF!","v":{"$error":"#REF!"}},{"$f":"+(#REF!/5)*#REF!","v":{"$error":"#REF!"}},{"$f":"+(#REF!/5)*#REF!","v":{"$error":"#REF!"}},{"$f":"+(#REF!/5)*#REF!","v":{"$error":"#REF!"}}]
["2.  Bidder must have a workshop and Technitions","Workshop to be inspected",30,"Workshop facility      = 5 Points                           No Facility = 0 Points",0,{"$f":"+(#REF!/5)*#REF!","v":{"$error":"#REF!"}},{"$f":"+(#REF!/5)*#REF!","v":{"$error":"#REF!"}},{"$f":"+(#REF!/5)*#REF!","v":{"$error":"#REF!"}},0,{"$f":"+(#REF!/5)*#REF!","v":{"$error":"#REF!"}},{"$f":"+(#REF!/5)*#REF!","v":{"$error":"#REF!"}},{"$f":"+(#REF!/5)*#REF!","v":{"$error":"#REF!"}},{"$f":"+(#REF!/5)*#REF!","v":{"$error":"#REF!"}},{"$f":"+(#REF!/5)*#REF!","v":{"$error":"#REF!"}},{"$f":"+(#REF!/5)*#REF!","v":{"$error":"#REF!"}},{"$f":"+(#REF!/5)*#REF!","v":{"$error":"#REF!"}},{"$f":"+(#REF!/5)*#REF!","v":{"$error":"#REF!"}},{"$f":"+(#REF!/5)*#REF!","v":{"$error":"#REF!"}},{"$f":"+(#REF!/5)*#REF!","v":{"$error":"#REF!"}},{"$f":"+(#REF!/5)*#REF!","v":{"$error":"#REF!"}},{"$f":"+(#REF!/5)*#REF!","v":{"$error":"#REF!"}},{"$f":"+(#REF!/5)*#REF!","v":{"$error":"#REF!"}},{"$f":"+(#REF!/5)*#REF!","v":{"$error":"#REF!"}},{"$f":"+(#REF!/5)*#REF!","v":{"$error":"#REF!"}}]
[{"$nulls":4},{"$f":"+($C$9/5)*E$9","v":0},{"$error":"#REF!"},{"$error":"#REF!"},{"$error":"#REF!"},0,{"$error":"#REF!"},{"$error":"#REF!"},{"$error":"#REF!"},{"$error":"#REF!"},{"$error":"#REF!"},{"$error":"#REF!"},{"$error":"#REF!"},{"$error":"#REF!"},{"$error":"#REF!"},{"$error":"#REF!"},{"$error":"#REF!"},{"$error":"#REF!"},{"$error":"#REF!"},{"$error":"#REF!"},{"$error":"#REF!"}]
["3.  Refference letters from customers.","Letters from customers",20,"3 Letters – Fully compliant = 5 Points                                           2 Letters – Compliant        = 3.5 Points                                           1 Letter – Partially compliant = 1 Point                                          No letter Non-compliant  = 0 Point",0,0,0,0,0,0,0,0,0,0,0,0,0,0,0,0,0,0,0,0]
[{"$nulls":4},{"$f":"+($C$11/5)*E$11","v":0},{"$f":"+($C$11/5)*F$11","v":0},0,0,0,0,0,0,0,0,0,0,0,0,0,0,0,0,0,0]
["Bidders to score >70 for functional evaluation criteria will proceed to next stage. ",{"$nulls":3},{"$f":"+E12+E10+E8+E7","v":{"$error":"#REF!"}},{"$error":"#REF!"},{"$error":"#REF!"},{"$error":"#REF!"},{"$error":"#REF!"},{"$error":"#REF!"},{"$error":"#REF!"},{"$error":"#REF!"},{"$error":"#REF!"},{"$error":"#REF!"},{"$error":"#REF!"},{"$error":"#REF!"},{"$error":"#REF!"},{"$error":"#REF!"},{"$error":"#REF!"},{"$error":"#REF!"},{"$error":"#REF!"},{"$error":"#REF!"},{"$error":"#REF!"},{"$error":"#REF!"}]
[]
[null,"YES / NO",null,null,"No",{"$nulls":4},"No",{"$nulls":4},"No",{"$nulls":4},"No"]
[]
[]
[]
[]
[]
[]
["SIGNATURE:             ……………………………………………………………………",null,"DATE:             ……………………………………………………………………"]